bitfinex-derivatives/quotes_BTCF0:USTF0_20250905
["timestamp","ask_amount","ask_price","bid_price","bid_amount"]
[1757087163287,0.8923,110980.0,110970.0,0.07529]
[1757087163486,1.2531,110980.0,110970.0,0.07529]
[1757087163689,1.71026795,110980.0,110970.0,0.07529]
[1757087163895,1.97038795,110980.0,110970.0,0.003]
[1757087164888,1.99472412,110980.0,110970.0,0.003]
[1757087165497,1.99471281,110980.0,110970.0,0.003]
[1757087166090,1.99571281,110980.0,110970.0,0.002]
[1757087166692,1.11971281,110980.0,110970.0,0.002]
[1757087166890,1.99343281,110980.0,110970.0,0.002]
[1757087167893,1.99431281,110980.0,110960.0,0.02843]
[1757087168098,0.377,110970.0,110960.0,0.0741]
[1757087168291,0.3771,110970.0,110950.0,0.02853]
[1757087168597,0.88872,110960.0,110950.0,0.0742]
[1757087168798,1.34588795,110960.0,110950.0,0.0741]
[1757087169199,1.34588795,110960.0,110950.0,0.14560614]
[1757087169399,0.88872,110960.0,110950.0,0.14560614]
[1757087169594,0.0162,110960.0,110950.0,0.14560614]
[1757087169787,0.88892,110960.0,110950.0,0.14560614]
[1757087170500,0.88892,110960.0,110950.0,0.14660614]
[1757087170900,0.88892,110960.0,110950.0,0.50940614]
[1757087172294,0.0163,110970.0,110960.0,0.074]
[1757087172495,0.39825418,110980.0,110970.0,0.074]
[1757087172703,1.75555873,110980.0,110970.0,0.074]
[1757087173000,2.00555873,110980.0,110960.0,0.0001]
[1757087173301,0.8378595,110970.0,110960.0,0.0001]
[1757087173505,0.86228455,110970.0,110950.0,0.10303614]
[1757087173701,1.7104195,110960.0,110950.0,0.14870614]
[1757087173895,1.7104195,110960.0,110950.0,0.14860614]
[1757087173896,1.7105195,110960.0,110950.0,0.14860614]
[1757087174095,1.7105195,110960.0,110950.0,0.14760614]
[1757087174297,1.73486024,110960.0,110950.0,0.14760614]
[1757087174498,1.73486024,110960.0,110950.0,0.14560614]
[1757087174803,0.88886,110960.0,110950.0,0.14560614]
[1757087175101,0.91320062,110960.0,110950.0,0.14560614]
[1757087175297,0.91320062,110960.0,110950.0,0.14760614]
[1757087175695,1.37406012,110960.0,110950.0,0.14760614]
[1757087175899,1.37406012,110960.0,110950.0,0.14787614]
[1757087176294,0.50150012,110960.0,110950.0,0.14887614]
[1757087176493,0.91240062,110960.0,110950.0,0.14887614]
[1757087176697,0.91224062,110960.0,110950.0,0.50967614]
[1757087176901,0.91225713,110960.0,110950.0,0.14887614]
[1757087178696,0.04065713,110960.0,110950.0,0.50967614]
[1757087179001,0.02435713,110960.0,110950.0,1.22053564]
[1757087179502,0.89511713,110960.0,110950.0,1.22053564]
[1757087180696,0.90739713,110960.0,110950.0,0.75967614]
[1757087181992,0.90749713,110960.0,110950.0,0.50967614]
[1757087182197,1.36835663,110960.0,110950.0,0.14887614]
[1757087183802,1.41660778,110960.0,110950.0,0.14887614]
[1757087184399,1.41660778,110960.0,110950.0,0.10293614]
[1757087184605,2.48826728,110960.0,110950.0,0.07460614]
[1757087184795,2.02740778,110960.0,110950.0,0.07460614]
[1757087185396,2.48826728,110960.0,110950.0,0.0031]
[1757087185608,2.02740778,110960.0,110950.0,0.0031]
[1757087186200,2.02552778,110960.0,110950.0,0.0755]
[1757087186406,2.02552778,110960.0,110950.0,0.02956]
[1757087186907,2.03530781,110960.0,110950.0,0.02956]
[1757087187103,1.32444831,110960.0,110950.0,0.0755]
[1757087187308,1.78530781,110960.0,110950.0,0.0755]
[1757087188010,1.78530781,110960.0,110950.0,0.0031]
[1757087188408,1.73705666,110960.0,110950.0,0.0031]
[1757087189009,1.98705666,110960.0,110950.0,0.0031]
[1757087189400,2.44791616,110960.0,110950.0,0.0031]
[1757087190410,2.49652086,110960.0,110950.0,0.0031]
[1757087191118,2.49651913,110960.0,110950.0,0.0031]
[1757087191313,1.98705666,110960.0,110950.0,0.0031]
[1757087194611,2.51225799,110960.0,110940.0,0.0001]
[1757087194827,0.8765428,110950.0,110940.0,0.0001]
[1757087195021,0.92171256,110950.0,110930.0,0.0001]
[1757087195220,1.6934495,110940.0,110930.0,0.0001]
[1757087195424,1.71790663,110940.0,110920.0,0.02843]
[1757087195621,0.85226663,110940.0,110930.0,0.0724]
[1757087195826,1.71794663,110940.0,110930.0,0.0724]
[1757087196023,1.71794663,110940.0,110920.0,0.02843]
[1757087196323,1.71794663,110940.0,110930.0,0.02646]
[1757087196529,1.71794663,110940.0,110920.0,0.02843]
[1757087196726,0.4670095,110930.0,110920.0,0.03143]
[1757087196926,0.49146663,110930.0,110920.0,0.03133]
[1757087197819,0.49146663,110930.0,110920.0,0.07727]
[1757087198020,0.03060713,110930.0,110920.0,0.07727]
[1757087198214,0.89556713,110930.0,110920.0,0.07727]
[1757087198418,1.35642663,110930.0,110920.0,0.07827]
[1757087198727,1.35742663,110930.0,110920.0,0.1481056]
[1757087199324,1.35732663,110930.0,110920.0,0.1481056]
[1757087199925,0.89646713,110930.0,110920.0,0.1481056]
[1757087200125,1.35732663,110930.0,110920.0,0.1481056]
[1757087201230,0.03150713,110930.0,110920.0,0.1481056]
[1757087201430,1.35700663,110930.0,110920.0,0.1481056]
[1757087202224,1.35710663,110930.0,110920.0,0.1021656]
[1757087202734,1.35710663,110930.0,110920.0,0.1481056]
[1757087203032,0.89624713,110930.0,110920.0,0.1481056]
[1757087203336,0.49246663,110930.0,110920.0,0.1481056]
[1757087203532,0.89628713,110930.0,110920.0,0.1481056]
[1757087203835,0.03160713,110930.0,110920.0,0.1481056]
[1757087204021,0.03160713,110930.0,110920.0,1.2197651]
[1757087204228,0.89562713,110930.0,110920.0,1.2197651]
[1757087204533,0.89566713,110930.0,110920.0,0.8589651]
[1757087204835,0.89566713,110930.0,110920.0,0.3981056]
[1757087205129,0.89566713,110930.0,110920.0,0.1481056]
[1757087205130,0.89576713,110930.0,110920.0,0.1481056]
[1757087205332,1.35662663,110930.0,110920.0,0.3981056]
[1757087205634,1.35662663,110930.0,110920.0,0.1481056]
[1757087207325,1.23221,110930.0,110920.0,0.1021656]
[1757087207527,1.71763641,110930.0,110920.0,0.1021656]
[1757087208334,1.6930695,110930.0,110920.0,0.1441156]
[1757087208535,1.6930695,110930.0,110920.0,0.1021656]
[1757087209230,1.6930695,110930.0,110920.0,0.03025]
[1757087209935,1.23029,110930.0,110920.0,0.0722]
[1757087210130,1.6911495,110930.0,110920.0,0.0722]
[1757087210532,1.23029,110930.0,110920.0,0.0722]
[1757087210735,1.6911495,110930.0,110920.0,0.0722]
[1757087212434,1.6911495,110930.0,110920.0,0.03025]
[1757087212636,1.6911495,110930.0,110920.0,0.0722]
[1757087212836,1.6911495,110930.0,110920.0,0.03025]
[1757087213335,1.6911495,110930.0,110920.0,0.0722]
[1757087213639,1.9411495,110930.0,110920.0,0.0021]
[1757087214038,1.9411495,110930.0,110910.0,0.0001]
[1757087214039,2.402009,110930.0,110910.0,0.0001]
[1757087214237,1.282879,110920.0,110910.0,0.0001]
[1757087214538,2.146279,110920.0,110900.0,0.0001]
[1757087214741,0.84260203,110910.0,110900.0,0.0001]
[1757087214938,0.84270203,110910.0,110890.0,0.02656]
[1757087215243,1.3245195,110900.0,110890.0,0.06851]
[1757087215436,1.3246195,110900.0,110890.0,0.06841]
[1757087216334,1.3256195,110900.0,110890.0,0.07041]
[1757087217136,1.3256195,110900.0,110890.0,0.002]
[1757087217336,1.6864195,110900.0,110890.0,0.002]
[1757087218335,1.9364195,110900.0,110890.0,0.002]
[1757087218527,1.9364195,110900.0,110890.0,0.003]
[1757087219540,1.4744,110900.0,110890.0,0.003]
[1757087219836,1.9352595,110900.0,110890.0,0.003]
[1757087220037,1.9362595,110900.0,110890.0,0.002]
[1757087220232,1.0740195,110900.0,110890.0,0.002]
[1757087220935,1.9359395,110900.0,110890.0,0.02758]
[1757087221134,1.9369395,110900.0,110890.0,0.02658]
[1757087221342,1.47612,110900.0,110890.0,0.02658]
[1757087221547,1.9369795,110900.0,110890.0,0.02658]
[1757087221742,1.6868195,110900.0,110890.0,0.06853]
[1757087222046,1.22624,110900.0,110890.0,0.31853]
[1757087222545,1.6870995,110900.0,110890.0,0.31853]
[1757087223749,1.6870995,110900.0,110890.0,0.02658]
[1757087224742,1.6870995,110900.0,110890.0,0.001]
[1757087226540,1.6870995,110900.0,110890.0,0.02658]
[1757087226734,1.6870995,110900.0,110890.0,0.06853]
[1757087226735,0.4642195,110900.0,110890.0,0.06853]
[1757087226935,1.3254995,110900.0,110890.0,0.06853]
[1757087227240,1.6862995,110900.0,110890.0,0.06853]
[1757087227441,1.22544,110900.0,110890.0,0.06853]
[1757087227639,0.86464,110900.0,110890.0,0.06853]
[1757087227946,1.6862995,110900.0,110890.0,0.06853]
[1757087228141,0.00336,110900.0,110890.0,0.31853]
[1757087228343,0.86468,110900.0,110890.0,0.31853]
[1757087228937,1.3255395,110900.0,110890.0,0.31853]
[1757087230545,1.3249395,110900.0,110890.0,0.31853]
[1757087231454,0.86408,110900.0,110890.0,0.31853]
[1757087232644,0.86408,110900.0,110890.0,0.06853]
[1757087232943,1.93319779,110900.0,110890.0,0.0011]
[1757087233334,1.47488,110900.0,110890.0,0.0011]
[1757087233540,1.93319779,110900.0,110890.0,0.0011]
[1757087234951,2.37899779,110900.0,110890.0,0.0011]
[1757087239049,2.40357807,110900.0,110890.0,0.0011]
[1757087240553,2.40169807,110900.0,110890.0,0.0011]
[1757087241148,2.15141807,110900.0,110890.0,0.0011]
[1757087241345,1.29285807,110900.0,110890.0,0.0011]
[1757087241652,2.15161807,110900.0,110890.0,0.0011]
[1757087242855,2.15137807,110900.0,110890.0,0.0011]
[1757087244753,2.40137807,110900.0,110890.0,0.0011]
[1757087245449,2.40127807,110900.0,110890.0,0.0011]
[1757087245649,1.95547807,110900.0,110890.0,0.0011]
[1757087246267,1.95747807,110900.0,110890.0,0.0021]
[1757087246553,1.95947807,110900.0,110890.0,0.0021]
[1757087247055,1.95823807,110900.0,110890.0,0.0021]
[1757087248359,2.00687137,110900.0,110890.0,0.0021]
[1757087249052,2.00697137,110900.0,110890.0,0.0021]
[1757087249660,2.05833807,110900.0,110850.0,0.02704]
[1757087249858,0.81911779,110860.0,110850.0,0.06823]
[1757087250062,1.70007765,110860.0,110850.0,0.06823]
[1757087250263,0.88095986,110860.0,110850.0,0.06823]
[1757087250464,0.88091986,110860.0,110850.0,0.07761471]
[1757087250656,0.88091986,110860.0,110850.0,0.06823]
[1757087250851,0.85644,110860.0,110850.0,0.67903]
[1757087251156,0.85644,110860.0,110850.0,0.68103]
[1757087251563,0.3608,110870.0,110860.0,0.06823]
[1757087251952,0.3814944,110880.0,110860.0,0.67903]
[1757087252154,0.3815944,110880.0,110870.0,0.06823]
[1757087252354,0.8769744,110880.0,110870.0,0.07784194]
[1757087252559,0.8769744,110880.0,110870.0,0.06823]
[1757087253163,0.8779744,110880.0,110870.0,0.06823]
[1757087253660,0.8779744,110880.0,110870.0,0.06923]
[1757087253866,0.8776144,110880.0,110870.0,0.06923]
[1757087254065,0.8777144,110880.0,110870.0,0.06923]
[1757087254367,0.90418742,110880.0,110870.0,0.07023]
[1757087254561,1.26498742,110880.0,110870.0,0.07023]
[1757087255562,1.63427994,110880.0,110870.0,0.07023]
[1757087255963,1.27269994,110880.0,110870.0,0.68103]
[1757087256268,1.24822692,110880.0,110870.0,0.68103]
[1757087256466,1.24814692,110880.0,110870.0,0.68103]
[1757087257357,0.8788544,110880.0,110870.0,0.68103]
[1757087257857,0.8787344,110880.0,110870.0,0.68103]
[1757087258157,0.0236944,110880.0,110870.0,1.05032252]
[1757087258362,0.8782544,110880.0,110870.0,1.05032252]
[1757087258670,0.85752,110880.0,110870.0,1.05032252]
[1757087259171,0.003,110880.0,110870.0,1.05032252]
[1757087259579,0.85724,110880.0,110870.0,0.80032252]
[1757087261175,0.003,110880.0,110870.0,0.80032252]
[1757087261469,0.78805,110880.0,110870.0,1.41961504]
[1757087261671,0.76111,110880.0,110870.0,1.41961504]
[1757087261875,2.01328,110890.0,110880.0,0.02704]
[1757087262174,2.01328,110890.0,110880.0,1.16761504]
[1757087262175,2.86876,110890.0,110880.0,1.16761504]
[1757087262474,0.2698,110890.0,110880.0,1.41761504]
[1757087262968,1.16651,110890.0,110880.0,0.42903]
[1757087263169,1.16661,110890.0,110880.0,0.79832252]
[1757087263377,1.16861,110890.0,110880.0,0.79832252]
[1757087264477,1.17061,110890.0,110880.0,0.79932252]
[1757087264773,1.16861,110890.0,110880.0,0.80032252]
[1757087264974,1.16861,110890.0,110880.0,0.43103]
[1757087265174,1.16661,110890.0,110880.0,0.79932252]
[1757087265475,1.16661,110890.0,110880.0,0.80132252]
[1757087265678,1.16761,110890.0,110880.0,0.80132252]
[1757087266164,1.12598,110890.0,110880.0,0.80132252]
[1757087266577,1.16832,110890.0,110880.0,0.80132252]
[1757087268778,1.12492,110890.0,110880.0,1.42061504]
[1757087268983,0.2708,110890.0,110880.0,1.51089574]
[1757087269177,1.12496,110890.0,110880.0,1.51089574]
[1757087269880,0.2708,110890.0,110880.0,1.51089574]
[1757087270081,1.12492,110890.0,110880.0,1.51089574]
[1757087270280,0.85422,110900.0,110890.0,0.06869]
[1757087270481,0.85422,110900.0,110890.0,0.79888252]
[1757087271781,0.85598,110900.0,110890.0,0.79888252]
[1757087272178,0.0021,110900.0,110890.0,1.14005512]
[1757087272479,0.0031,110900.0,110890.0,1.04988252]
[1757087273375,0.0031,110900.0,110890.0,1.14005502]
[1757087273581,0.0031,110900.0,110890.0,1.14205502]
[1757087273979,0.003,110900.0,110890.0,1.14205502]
[1757087274183,0.001,110900.0,110890.0,1.14305502]
[1757087274385,0.001,110900.0,110890.0,1.05288252]
[1757087274784,0.001,110900.0,110890.0,0.80288252]
[1757087274984,0.0011,110900.0,110890.0,0.80288252]
[1757087275579,0.04344,110900.0,110890.0,0.80288252]
[1757087275783,0.0011,110900.0,110890.0,0.80288252]
[1757087275980,0.85434,110900.0,110890.0,0.80288252]
[1757087276287,0.89668,110900.0,110890.0,0.80288252]
[1757087277491,0.89668,110900.0,110890.0,0.43359]
[1757087277683,0.89668,110900.0,110890.0,0.80288252]
[1757087278481,0.04344,110900.0,110890.0,0.80288252]
[1757087278787,0.89648,110900.0,110890.0,0.80288252]
[1757087279190,0.89648,110900.0,110890.0,0.43359]
[1757087279387,1.17081,110900.0,110890.0,0.43359]
[1757087279591,1.17081,110900.0,110890.0,0.80288252]
[1757087280094,1.17081,110900.0,110890.0,0.43359]
[1757087282096,0.89648,110900.0,110890.0,0.80288252]
[1757087282293,0.04344,110900.0,110890.0,0.80288252]
[1757087282491,0.8541,110900.0,110890.0,0.80288252]
[1757087282799,0.89644,110900.0,110890.0,0.80288252]
[1757087283300,1.54006252,110900.0,110890.0,0.40754]
[1757087284185,1.17077,110900.0,110890.0,0.40754]
[1757087284390,1.54006252,110900.0,110890.0,0.0041]
[1757087284591,1.92540374,110900.0,110890.0,0.0041]
[1757087284888,1.92540374,110900.0,110890.0,0.004]
[1757087284889,1.92530374,110900.0,110890.0,0.004]
[1757087285891,1.92530374,110900.0,110880.0,0.0001]
[1757087286099,0.79676252,110890.0,110880.0,0.0001]
[1757087286397,0.06667,110880.0,110870.0,0.04274]
[1757087286598,1.31350374,110880.0,110870.0,0.04264]
[1757087287488,1.31350374,110880.0,110860.0,0.47698584]
[1757087287489,0.06667,110870.0,110860.0,0.07066928]
[1757087287693,0.54976339,110870.0,110860.0,0.11320928]
[1757087287886,0.09122076,110870.0,110860.0,0.11320928]
[1757087288089,0.06689076,110870.0,110860.0,0.50005928]
[1757087288294,0.04234,110870.0,110860.0,0.50005928]
[1757087288502,0.89538,110870.0,110860.0,0.50005928]
[1757087288793,0.89534,110870.0,110860.0,0.50005928]
[1757087289301,0.06323748,110880.0,110870.0,0.06869]
[1757087289494,0.94081518,110880.0,110870.0,0.06869]
[1757087289796,0.02433,110870.0,110860.0,0.0021]
[1757087290097,0.9105516,110870.0,110860.0,0.002]
[1757087290493,0.9198509,110870.0,110860.0,0.002]
[1757087290997,0.46130827,110870.0,110860.0,0.04464]
[1757087291694,0.9198509,110870.0,110860.0,0.002]
[1757087291894,1.7729309,110870.0,110850.0,0.07170672]
[1757087292094,0.06667,110860.0,110850.0,0.11434672]
[1757087292294,0.09120897,110860.0,110850.0,0.11424672]
[1757087293688,0.09120897,110860.0,110850.0,0.14029672]
[1757087293896,0.94428897,110860.0,110850.0,0.11424672]
[1757087294304,0.04234,110860.0,110850.0,0.50109672]
[1757087294497,0.04234,110860.0,110850.0,0.96482342]
[1757087294498,0.89646,110860.0,110850.0,0.96482342]
[1757087294697,0.89646,110860.0,110850.0,0.14229672]
[1757087294898,0.92079,110860.0,110850.0,0.14229672]
[1757087295206,0.89642,110860.0,110850.0,0.14229672]
[1757087295505,0.89742,110860.0,110850.0,0.14529672]
[1757087295694,0.92345,110860.0,110850.0,0.14529672]
[1757087297204,0.89742,110860.0,110850.0,0.14529672]
[1757087297700,0.92345,110860.0,110850.0,0.11924672]
[1757087298006,1.28425,110860.0,110850.0,0.11924672]
[1757087298300,1.7459767,110860.0,110850.0,0.11924672]
[1757087298505,1.28425,110860.0,110850.0,0.11924672]
[1757087298695,1.7459767,110860.0,110850.0,0.11924672]
[1757087299303,1.28425,110860.0,110850.0,0.14424672]
[1757087299907,0.92345,110860.0,110850.0,0.50504672]
[1757087300205,0.92345,110860.0,110850.0,0.48004672]
[1757087300610,1.3851767,110860.0,110850.0,0.48004672]
[1757087300909,0.92345,110860.0,110850.0,0.48004672]
[1757087301607,1.28425,110860.0,110850.0,0.11924672]
[1757087303308,0.92345,110860.0,110850.0,0.48004672]
[1757087303516,0.92345,110860.0,110850.0,0.14424672]
[1757087303806,0.92345,110860.0,110850.0,0.11924672]
[1757087303996,0.92345,110860.0,110850.0,0.48004672]
[1757087304601,0.92345,110860.0,110850.0,0.50504672]
[1757087305499,0.04434,110860.0,110850.0,0.50504672]
[1757087305701,0.85504,110860.0,110850.0,1.21677342]
[1757087305900,0.002,110860.0,110850.0,1.30697842]
[1757087306111,0.002,110860.0,110850.0,1.21677342]
[1757087307404,0.002,110860.0,110850.0,1.49345172]
[1757087307911,0.04193,110860.0,110850.0,0.87424922]
[1757087308404,0.4371625,110860.0,110850.0,0.75504672]
[1757087308603,0.4371625,110860.0,110850.0,0.87424922]
[1757087308604,0.04193,110860.0,110850.0,0.87424922]
[1757087308909,0.4111325,110860.0,110850.0,0.87424922]
[1757087309105,0.04193,110860.0,110850.0,0.87424922]
[1757087309904,0.89489,110860.0,110850.0,0.87424922]
[1757087311809,0.002,110860.0,110850.0,1.49345172]
[1757087312006,0.85492,110860.0,110850.0,1.49345172]
[1757087313314,0.87948978,110860.0,110850.0,1.49345172]
[1757087313513,0.87948978,110860.0,110850.0,1.12424922]
[1757087315514,0.85492,110860.0,110850.0,1.12424922]
[1757087315714,0.8795164,110860.0,110850.0,1.12424922]
[1757087315914,0.8795164,110860.0,110850.0,1.49345172]
[1757087317011,0.0265964,110860.0,110850.0,1.49345172]
[1757087317204,0.0265964,110860.0,110850.0,1.58365672]
[1757087318015,0.0265964,110860.0,110850.0,1.49345172]
[1757087319515,0.0265964,110860.0,110850.0,1.24345172]
[1757087320015,0.0265964,110860.0,110850.0,1.58365672]
[1757087320915,0.29079748,110880.0,110870.0,0.06536]
[1757087321217,0.31529953,110880.0,110870.0,1.525365]
[1757087321419,0.31529953,110880.0,110870.0,0.78696]
[1757087321618,0.31529953,110880.0,110870.0,1.525365]
[1757087322213,0.31629953,110880.0,110870.0,1.525365]
[1757087322606,0.31629953,110880.0,110870.0,0.78696]
[1757087322811,0.31629953,110880.0,110870.0,1.525365]
[1757087323010,0.35622953,110880.0,110870.0,0.78696]
[1757087323217,0.35722953,110880.0,110870.0,1.1571625]
[1757087324217,0.35695027,110880.0,110870.0,1.1571625]
[1757087324518,0.35595027,110880.0,110870.0,1.1571625]
[1757087324719,0.35595027,110880.0,110870.0,1.1581625]
[1757087325216,0.35595027,110880.0,110870.0,1.527365]
[1757087325521,1.20843027,110880.0,110870.0,1.527365]
[1757087325721,1.20843027,110880.0,110870.0,1.1581625]
[1757087326918,1.20843027,110880.0,110870.0,1.1591625]
[1757087327822,1.18410748,110880.0,110870.0,1.1591625]
[1757087328915,1.20852748,110880.0,110870.0,1.1591625]
[1757087329118,1.18410748,110880.0,110870.0,1.1591625]
[1757087329809,0.91430748,110880.0,110870.0,1.1591625]
[1757087330326,0.87421748,110880.0,110870.0,1.528365]
[1757087330516,0.02189748,110880.0,110870.0,1.528365]
[1757087330717,0.85328,110880.0,110870.0,1.528365]
[1757087331617,0.001,110880.0,110870.0,3.0899961]
[1757087331920,0.001,110880.0,110870.0,2.2377561]
[1757087332121,0.27,110900.0,110890.0,0.06726]
[1757087332423,0.8523,110900.0,110890.0,1.166465]
[1757087332624,0.89292,110900.0,110890.0,0.42806]
[1757087332825,0.89292,110900.0,110890.0,1.166465]
[1757087333019,0.8523,110900.0,110890.0,1.166465]
[1757087334722,0.8543,110900.0,110890.0,1.167465]
[1757087334918,0.8543,110900.0,110890.0,1.168465]
[1757087335222,0.8563,110900.0,110890.0,1.168465]
[1757087335620,0.8543,110900.0,110890.0,1.167465]
[1757087335820,0.8533,110900.0,110890.0,1.172465]
[1757087336222,0.8533,110900.0,110890.0,1.18164705]
[1757087336524,0.89392,110900.0,110890.0,1.18164705]
[1757087337628,0.8533,110900.0,110890.0,0.44324205]
[1757087337824,0.0011,110900.0,110890.0,1.18164705]
[1757087338130,0.0011,110900.0,110890.0,1.63261945]
[1757087338321,0.0011,110900.0,110890.0,1.54244705]
[1757087339629,0.0011,110900.0,110890.0,1.63261945]
[1757087341631,0.0011,110900.0,110890.0,2.48453945]
[1757087341824,0.2698,110910.0,110900.0,0.1574242]
[1757087342124,0.2699,110930.0,110910.0,0.0901537]
[1757087342327,1.18647233,110930.0,110920.0,1.5356675]
[1757087342530,1.14585233,110930.0,110920.0,1.527265]
[1757087343424,0.87605233,110930.0,110920.0,1.8964675]
[1757087343621,0.8518,110940.0,110920.0,1.9866154]
[1757087343828,0.87600636,110940.0,110930.0,1.2566047]
[1757087344033,0.87600636,110940.0,110930.0,2.7566047]
[1757087344826,0.87600636,110940.0,110930.0,3.0066047]
[1757087344827,0.02420636,110940.0,110930.0,3.0066047]
[1757087345023,0.0001,110960.0,110950.0,0.06726]
[1757087345230,2.55037366,110970.0,110950.0,1.527265]
[1757087345431,1.85281366,110970.0,110960.0,0.88876042]
[1757087345627,2.72895366,110970.0,110960.0,0.88876042]
[1757087345832,2.72895366,110970.0,110960.0,0.42806]
[1757087346631,2.72895366,110970.0,110960.0,0.41182541]
[1757087346829,2.73395366,110970.0,110960.0,0.41182541]
[1757087348931,2.73495366,110970.0,110960.0,0.41182541]
[1757087349327,2.72995366,110970.0,110960.0,0.41182541]
[1757087349533,2.73195366,110970.0,110960.0,0.41282541]
[1757087350235,2.93352423,110970.0,110960.0,0.48317182]
[1757087350832,2.93352423,110970.0,110960.0,0.47378641]
[1757087351031,3.45856648,110970.0,110960.0,0.47378641]
[1757087351336,3.45856648,110970.0,110960.0,0.43214641]
[1757087351935,2.99786606,110970.0,110960.0,0.47378641]
[1757087353134,2.72682183,110970.0,110960.0,0.96010683]
[1757087353330,2.70240183,110970.0,110960.0,0.96010683]
[1757087353533,2.70240183,110970.0,110960.0,0.95701107]
[1757087353731,2.70240183,110970.0,110960.0,0.49940641]
[1757087353928,0.051433,110970.0,110960.0,1.21642158]
[1757087354334,0.092053,110970.0,110960.0,1.21642158]
[1757087355033,0.092053,110970.0,110960.0,0.75881692]
[1757087355228,0.116283,110970.0,110960.0,0.48319692]
[1757087356041,0.092053,110970.0,110960.0,0.50863692]
[1757087356240,0.051433,110970.0,110960.0,0.96624158]
[1757087357036,0.07492528,110970.0,110960.0,0.96624158]
[1757087357237,0.06556228,110970.0,110960.0,0.96624158]
[1757087358137,0.08979228,110970.0,110960.0,0.96624158]
[1757087358338,0.15413411,110970.0,110960.0,0.96624158]
[1757087358537,0.15413411,110970.0,110960.0,0.50863692]
[1757087359240,0.12990411,110970.0,110960.0,0.50863692]
[1757087359844,0.02649228,110970.0,110960.0,0.50863692]
[1757087360042,0.06734183,110970.0,110960.0,0.50863692]
[1757087360342,0.09083411,110970.0,110960.0,0.50863692]
[1757087360844,0.12990411,110970.0,110960.0,0.50863692]
[1757087361343,0.12990411,110970.0,110960.0,0.96624158]
[1757087361934,0.12990411,110970.0,110960.0,0.50863692]
[1757087362434,0.09083411,110970.0,110960.0,0.50863692]
[1757087362837,0.68627411,110970.0,110960.0,0.96624158]
[1757087363236,0.72534411,110970.0,110960.0,0.50863692]
[1757087363942,0.74957411,110970.0,110960.0,0.48319692]
[1757087364443,0.74957411,110970.0,110960.0,0.50863692]
[1757087364738,0.12990411,110970.0,110960.0,0.50863692]
[1757087364945,0.09083411,110970.0,110960.0,0.96624158]
[1757087365446,0.83953228,110970.0,110960.0,0.96624158]
[1757087365646,0.07502884,110970.0,110960.0,1.05635688]
[1757087366238,0.02649228,110970.0,110960.0,1.05635688]
[1757087366545,0.05154785,110970.0,110960.0,1.30635688]
[1757087366740,0.07504013,110970.0,110960.0,1.30635688]
[1757087370046,0.07504013,110970.0,110960.0,0.84875222]
[1757087370345,0.07504013,110970.0,110960.0,1.21624158]
[1757087370844,0.07504013,110970.0,110960.0,1.30635688]
[1757087371046,0.07504013,110970.0,110960.0,1.21624158]
[1757087371250,0.11411013,110970.0,110960.0,0.50863692]
[1757087371438,0.11411013,110970.0,110960.0,0.96624158]
[1757087372842,0.13834013,110970.0,110960.0,0.48319692]
[1757087373244,0.33979228,110970.0,110960.0,0.48319692]
[1757087373550,0.40413411,110970.0,110960.0,0.48319692]
[1757087373749,0.40413411,110970.0,110960.0,0.50863692]
[1757087374438,0.67393411,110970.0,110960.0,0.50863692]
[1757087375046,1.50014411,110970.0,110960.0,0.50863692]
[1757087376042,1.46003228,110970.0,110960.0,0.50863692]
[1757087376246,1.50868644,110970.0,110960.0,0.50863692]
[1757087377853,1.50868644,110970.0,110960.0,0.48319692]
[1757087378656,1.50868644,110970.0,110960.0,0.47378641]
[1757087379350,2.07297877,110970.0,110960.0,0.07134641]
[1757087379548,1.82297877,110970.0,110960.0,0.07134641]
[1757087379949,1.36537411,110970.0,110960.0,0.07134641]
[1757087380257,1.36525411,110970.0,110960.0,0.11128641]
[1757087380647,1.00445411,110970.0,110960.0,0.11128641]
[1757087384849,0.94011228,110970.0,110960.0,0.11128641]
[1757087385771,0.94011228,110970.0,110960.0,0.07134641]
[1757087386258,0.94011228,110970.0,110960.0,0.11262641]
[1757087387254,0.98875684,110970.0,110960.0,0.11262641]
[1757087387460,1.35741809,110970.0,110960.0,0.11262641]
[1757087387859,1.28528125,110970.0,110960.0,0.11262641]
[1757087388156,1.28528125,110970.0,110960.0,0.07134641]
[1757087389463,1.53528125,110970.0,110960.0,0.07134641]
[1757087390064,1.55632193,110970.0,110960.0,0.07134641]
[1757087390965,0.33734068,110970.0,110960.0,0.11262641]
[1757087391166,1.55604193,110970.0,110960.0,0.11262641]
[1757087392366,0.08734068,110970.0,110960.0,0.84208766]
[1757087392567,0.93730068,110970.0,110960.0,0.84208766]
[1757087392768,0.06311068,110970.0,110960.0,0.86529766]
[1757087392963,0.91307068,110970.0,110960.0,0.86529766]
[1757087393366,0.06311068,110970.0,110960.0,0.86529766]
[1757087393578,0.91307068,110970.0,110960.0,0.86529766]
[1757087393773,0.02404068,110970.0,110960.0,1.11529766]
[1757087393974,0.76476068,110970.0,110960.0,1.11529766]
[1757087397781,0.80405068,110970.0,110960.0,0.74663641]
[1757087397975,0.80405068,110970.0,110960.0,1.11529766]
[1757087400483,0.80405068,110970.0,110960.0,0.74663641]
[1757087400678,0.80405068,110970.0,110960.0,1.11529766]
[1757087401076,0.80405068,110970.0,110960.0,0.74663641]
[1757087401380,0.80405068,110970.0,110960.0,1.11529766]
[1757087401577,1.19550193,110970.0,110960.0,0.47342641]
[1757087401974,1.44550193,110970.0,110960.0,0.47342641]
[1757087402479,1.44550193,110970.0,110960.0,0.43214641]
[1757087402877,1.44550193,110970.0,110960.0,0.47342641]
[1757087403076,1.44550193,110970.0,110960.0,0.43214641]
[1757087403279,1.44550193,110970.0,110960.0,0.47342641]
[1757087403474,0.04229,110970.0,110960.0,0.49663641]
[1757087403684,0.89177,110970.0,110960.0,0.86529766]
[1757087403985,0.91456,110970.0,110960.0,0.84208766]
[1757087404184,0.91456,110970.0,110960.0,0.47342641]
[1757087405283,1.28322125,110970.0,110960.0,0.47342641]
[1757087405583,0.91448,110970.0,110960.0,0.8834598]
[1757087405780,1.28314125,110970.0,110960.0,0.49158855]
[1757087405978,1.28314125,110970.0,110960.0,0.45030855]
[1757087406178,1.28314125,110970.0,110960.0,0.49158855]
[1757087406674,1.53314125,110970.0,110960.0,0.43214641]
[1757087406875,1.16448,110970.0,110960.0,0.43214641]
[1757087407180,1.53314125,110970.0,110960.0,0.07134641]
[1757087409484,2.28342828,110970.0,110960.0,0.001]